bitfinex/quotes_ETHUSD_20240701
["timestamp","ask_amount","ask_price","bid_price","bid_amount"]
[1719796792995,0.1,3496.0,3495.0,4.9179]
[1719796795057,0.1,3496.0,3494.9,1.145565]
[1719796799326,2.86074,3495.6,3494.2,1.33567308]
[1719796799653,2.86074,3495.6,3494.4,1.145799]
[1719796800102,0.1,3496.0,3494.4,1.145799]
[1719796800317,0.1,3496.0,3494.5,0.05722849]
[1719796801125,0.1,3496.0,3494.4,2.48100111]
[1719796801406,2.86049,3495.9,3494.4,2.48100111]
[1719796801972,2.86049,3495.9,3494.6,1.33520211]
[1719796802165,0.1,3496.0,3494.7,0.05722174]
[1719796802478,0.1,3496.0,3494.8,4.9179]
[1719796802679,0.1,3496.0,3494.9,0.05721553]
[1719796803113,0.1,3496.0,3494.8,4.9179]
[1719796805425,0.1,3496.0,3494.5,4.33450104]
[1719796805613,0.1,3496.0,3494.5,3.0]
[1719796806659,0.1,3496.0,3494.6,0.05721743]
[1719796806810,0.1,3496.0,3494.7,2.86146]
[1719796806985,0.1,3496.0,3494.9,2.86125]
[1719796807324,0.1,3496.0,3495.0,0.05721218]
[1719796807523,0.1,3496.0,3495.2,2.86104]
[1719796807833,0.1,3496.0,3495.3,0.05720908]
[1719796808732,0.29907888,3495.9,3495.3,0.05720908]
[1719796809495,0.29907888,3495.9,3494.6,11.06631]
[1719796809988,0.29907888,3495.9,3494.8,2.86139]
[1719796810181,0.29907888,3495.9,3494.9,2.91851441]
[1719796810542,0.29907888,3495.9,3495.0,2.86119]
[1719796810705,0.29907888,3495.9,3495.1,0.05721192]
[1719796811036,0.1,3496.0,3495.2,2.86106]
[1719796811331,0.1,3496.0,3495.3,0.05720882]
[1719796812108,0.1,3496.0,3495.4,2.86088]
[1719796812425,0.1,3496.0,3495.5,0.05720628]
[1719796812791,0.1,3496.0,3495.5,2.91801628]
[1719796812997,0.1,3496.0,3495.6,2.86071]
[1719796813248,0.1,3496.0,3495.7,0.05720381]
[1719796814346,0.1,3496.0,3495.5,2.91799375]
[1719796814528,0.1,3496.0,3495.4,7.9179]
[1719796814529,0.1,3496.0,3495.4,9.6389]
[1719796814704,0.1,3496.0,3495.6,1.927]
[1719796815110,0.1,3496.0,3495.8,2.86052]
[1719796815472,0.1,3496.0,3495.8,3.0]
[1719796815974,0.1,3496.0,3495.8,5.86056]
[1719796816125,0.1,3496.0,3495.9,2.86049]
[1719796817231,0.1,3496.0,3495.8,3.0]
[1719796818532,0.1,3496.0,3495.4,7.9179]
[1719796818857,0.1,3496.0,3495.4,3.0]
[1719796819060,0.1,3496.0,3495.5,0.2869]
[1719796819221,0.1,3496.0,3495.6,2.86071]
[1719796819644,0.1,3496.0,3495.5,0.2869]
[1719796820049,0.1,3496.0,3495.7,4.9179]
[1719796820534,0.1,3496.0,3495.9,3.0]
[1719796820739,0.1,3496.0,3495.9,5.86049]
[1719796827283,0.1,3496.0,3495.9,7.005651]
[1719796827589,0.1,3496.0,3495.9,9.866141]
[1719796827744,6.9193,3497.9,3496.9,2.85964]
[1719796828090,6.9193,3497.9,3496.9,1.927]
[1719796828685,6.9193,3497.9,3496.9,4.78667]
[1719796828846,6.9193,3497.9,3497.0,2.85958]
[1719796829374,6.9193,3497.9,3497.1,2.85948]
[1719796829928,6.9193,3497.9,3497.2,5.85942]
[1719796830595,6.9193,3497.9,3497.2,3.0]
[1719796831782,6.9193,3497.9,3496.5,3.1469]
[1719796832159,6.9193,3497.9,3496.6,2.85984]
[1719796832361,6.9193,3497.9,3496.5,0.2869]
[1719796832362,6.9193,3497.9,3496.7,2.85983]
[1719796832678,6.9193,3497.9,3496.5,0.2869]
[1719796832905,6.9193,3497.9,3496.6,2.85991]
[1719796833114,6.9193,3497.9,3496.7,5.85983]
[1719796833277,6.9193,3497.9,3496.8,2.85968]
[1719796834955,6.9193,3497.9,3496.9,2.85966]
[1719796835393,6.9193,3497.9,3497.0,2.85956]
[1719796836073,6.9193,3497.9,3497.1,5.8595]
[1719796836578,0.005,3498.0,3497.2,1.927]
[1719796836777,0.005,3498.0,3497.7,3.0]
[1719796837105,0.005,3498.0,3497.7,7.57996]
[1719796837309,0.005,3498.0,3497.9,2.85885]
[1719796837603,0.005,3498.0,3497.9,5.77486078]
[1719796837807,0.005,3498.0,3497.9,7.4387]
[1719796837957,0.005,3498.0,3497.9,12.3566]
[1719796838804,0.005,3498.0,3497.9,9.49775]
[1719796839704,0.005,3498.0,3497.8,0.2869]
[1719796839908,0.005,3498.0,3497.5,2.84]
[1719796840111,0.005,3498.0,3497.7,3.0]
[1719796840482,0.005,3498.0,3497.8,1.927]
[1719796841412,0.005,3498.0,3497.8,3.648]
[1719796842593,6.41984989,3500.0,3498.5,3.0]
[1719796842904,9.88274,3499.8,3498.5,3.0]
[1719796843118,9.88274,3499.8,3498.6,0.05715981]
[1719796843317,7.0254,3499.8,3498.6,0.05715981]
[1719796844333,6.41984989,3500.0,3498.7,4.9179]
[1719796844509,6.41984989,3500.0,3499.2,1.927]
[1719796844723,6.41984989,3500.0,3499.1,3.0]
[1719796844925,6.41984989,3500.0,3498.7,4.721]
[1719796845324,6.41984989,3500.0,3498.7,3.0]
[1719796846318,6.9673,3499.8,3498.7,3.0]
[1719796848652,2.85739,3499.7,3498.7,3.0]
[1719796848825,6.9673,3499.8,3498.0,3.0]
[1719796849018,6.9673,3499.8,3498.4,3.0]
[1719796849237,9.82467,3499.8,3498.5,0.05715976]
[1719796849438,11.44912199,3499.8,3498.5,0.05715976]
[1719796849615,2.85739,3499.7,3498.5,0.05715976]
[1719796849810,6.9673,3499.8,3498.5,0.05715976]
[1719796850446,6.9673,3499.8,3498.8,3.0]
[1719796850646,6.41984989,3500.0,3498.8,3.0]
[1719796850952,6.41984989,3500.0,3499.1,1.927]
[1719796851789,6.41984989,3500.0,3498.8,3.0]
[1719796852047,9.91947488,3500.0,3498.8,3.0]
[1719796853645,2.85755,3499.5,3498.5,2.72]
[1719796853844,1.41714349,3499.7,3498.5,2.72]
[1719796854044,2.85781,3499.2,3497.8,3.0]
[1719796854214,6.9839,3499.6,3497.8,3.0]
[1719796854215,2.85765,3499.4,3497.8,3.0]
[1719796854556,6.9839,3499.6,3498.0,1.927]
[1719796854760,6.9839,3499.6,3498.4,1.927]
[1719796854911,6.9839,3499.6,3498.5,0.34405537]
[1719796855264,6.9839,3499.6,3498.6,3.05715324]
[1719796855813,6.9839,3499.6,3498.6,4.98415324]
[1719796856331,6.41984989,3500.0,3498.6,4.98415324]
[1719796856509,6.41984989,3500.0,3498.6,4.927]
[1719796857739,6.41984989,3500.0,3499.6,3.0]
[1719796858279,6.41984989,3500.0,3499.2,3.05714463]
[1719796859487,6.41984989,3500.0,3499.2,3.0]
[1719796859849,6.41984989,3500.0,3499.3,0.05714144]
[1719796860070,6.41984989,3500.0,3499.6,3.0]
[1719796860278,6.41984989,3500.0,3499.2,3.0]
[1719796860604,6.41984989,3500.0,3499.3,0.05714434]
[1719796860733,6.41984989,3500.0,3499.2,4.721]
[1719796860931,6.41984989,3500.0,3499.3,0.05714063]
[1719796861136,6.41984989,3500.0,3499.6,3.0]
[1719796861378,6.41984989,3500.0,3499.7,0.05713966]
[1719796861922,6.41984989,3500.0,3499.8,6.8449]
[1719796864783,6.41984989,3500.0,3499.8,11.42315]
[1719796864994,4.58621825,3500.0,3499.9,8.579314]
[1719796865284,4.58621825,3500.0,3499.9,5.722094]
[1719796866040,4.58621825,3500.0,3499.9,8.579314]
[1719796866786,3.83394975,3500.0,3499.9,8.579314]
[1719796866937,3.83394975,3500.0,3499.9,11.579314]
[1719796867288,0.005,3500.3,3500.2,12.49587]
[1719796867436,0.34389345,3501.2,3501.0,3.0]
[1719796868609,0.34389345,3501.2,3500.2,3.0]
[1719796868893,0.29189345,3501.2,3500.6,3.0]
[1719796869767,7.1026,3501.1,3500.2,1.927]
[1719796869968,0.29189345,3501.2,3499.4,2.85]
[1719796869969,7.1026,3500.3,3499.4,2.85]
[1719796870181,7.1026,3500.3,3499.6,3.0]
[1719796870516,7.1026,3501.1,3499.6,3.0]
[1719796870669,0.60042935,3501.0,3499.7,0.05713749]
[1719796871008,2.85663,3500.7,3499.6,3.0]
[1719796871391,0.29189345,3501.2,3500.1,3.0]
[1719796871564,0.29189345,3501.2,3499.7,3.0]
[1719796871565,2.85632,3501.1,3499.7,3.0]
[1719796871758,2.85632,3501.0,3499.7,3.0]
[1719796872502,6.9161,3500.9,3499.7,3.0]
[1719796872708,6.9161,3500.9,3499.4,2.85]
[1719796872709,2.85691,3500.3,3499.4,2.85]
[1719796873365,3.54817,3500.8,3499.4,2.85]
[1719796873521,2.85673,3500.5,3499.4,4.17783386]
[1719796873710,2.85673,3500.5,3499.4,2.85]
[1719796873906,2.85698,3500.2,3499.4,2.85]
[1719796874147,10.29603,3500.1,3499.4,4.17783386]
[1719796874310,2.85714,3500.0,3499.4,1.32783386]
[1719796874502,2.85739,3499.7,3499.4,1.32783386]
[1719796874712,0.285739,3499.6,3499.2,1.32783386]
[1719796875051,2.85739,3499.7,3498.8,0.57454306]
[1719796875052,2.85756,3499.5,3498.8,0.57454306]
[1719796875266,2.85756,3499.5,3498.8,1.32847103]
[1719796875561,2.8574,3499.7,3498.9,1.32847103]
[1719796875722,2.8574,3499.7,3498.6,0.24736641]
[1719796875723,2.8575,3499.6,3498.6,1.32847103]
[1719796875909,5.8742,3500.0,3498.6,1.32847103]
[1719796876108,5.8742,3500.0,3498.4,3.0]
[1719796876109,2.85796,3499.0,3498.7,1.32847103]
[1719796876353,2.85796,3499.0,3498.6,1.32847103]
[1719796876646,2.85796,3499.0,3497.9,1.14908613]
[1719796876647,2.85836,3498.5,3497.8,1.32847103]
[1719796876851,2.85744,3499.7,3497.7,1.38564408]
[1719796876852,2.85804,3498.9,3497.7,1.38564408]
[1719796877040,2.85835,3498.6,3497.7,2.47302703]
[1719796877240,2.85837,3498.5,3497.6,1.32847103]
[1719796877409,6.9431,3498.4,3497.7,1.32847103]
[1719796877618,6.9431,3498.4,3497.9,1.32847103]
[1719796877975,6.9431,3498.4,3497.2,1.144723]
[1719796877976,7.923247,3498.4,3497.2,1.144723]
[1719796878111,7.923247,3498.4,3497.9,1.32981498]
[1719796878457,7.923247,3498.4,3497.2,0.57591181]
[1719796878458,2.85854,3498.3,3497.8,1.33018662]
[1719796878654,6.9431,3498.4,3497.8,1.33018662]
[1719796878947,6.9431,3498.4,3497.5,0.57591181]
[1719796878948,2.85854,3498.3,3497.6,1.33018662]
[1719796879152,5.71786,3497.8,3497.7,1.33018662]
[1719796879352,5.71786,3497.8,3497.1,0.82336623]
[1719796879353,2.85906,3497.7,3497.1,0.82336623]
[1719796879560,2.85919,3497.5,3497.0,0.82336623]
[1719796879764,6.907,3497.8,3497.0,0.57591181]
[1719796879971,6.907,3497.8,3496.9,0.82336623]
[1719796879972,2.85927,3497.4,3496.9,0.82336623]
[1719796880265,4.10793,3497.7,3496.8,0.57591181]
[1719796880266,2.8592,3497.5,3496.8,0.57591181]
[1719796880474,3.73045448,3497.5,3496.6,0.57591181]
[1719796880625,3.73045448,3497.5,3496.5,0.86386771]
[1719796880626,3.73045448,3497.5,3496.5,0.57591181]
[1719796880824,2.85951,3497.1,3496.5,0.57591181]
[1719796881025,2.85951,3497.1,3496.3,0.86386771]
[1719796881026,2.8596,3497.0,3496.6,0.57591181]
[1719796881252,2.8596,3497.0,3496.4,0.57591181]
[1719796881253,7.0609,3496.9,3496.4,0.57591181]
[1719796881463,7.0609,3496.9,3496.5,0.57591181]
[1719796881676,7.0609,3496.9,3496.4,0.57591181]
[1719796881871,7.0609,3496.9,3496.5,0.57591181]
[1719796882104,7.0609,3496.9,3496.6,0.57591181]
[1719796882454,2.86024,3496.2,3496.0,0.86386771]
[1719796882655,6.899,3496.1,3495.9,0.57758265]
[1719796882895,6.899,3496.1,3495.8,0.57767512]
[1719796883197,2.86015,3496.4,3495.7,0.57767512]
[1719796883404,2.85993,3496.6,3495.9,0.57767512]
[1719796883603,7.4162,3496.8,3495.9,0.57767512]
[1719796883773,7.4162,3496.8,3495.7,0.57767512]
[1719796883979,8.15782,3496.8,3495.7,0.57767512]
[1719796884168,2.85992,3496.6,3495.5,0.57767512]
[1719796884499,2.565,3496.7,3495.3,0.57767512]
[1719796884801,2.565,3496.7,3495.4,0.57767512]
[1719796884802,2.86005,3496.5,3495.4,0.57767512]
[1719796885019,7.4162,3496.8,3495.4,3.57767512]
[1719796885157,7.4162,3496.8,3495.6,0.57767512]
[1719796885504,7.4162,3496.8,3495.5,0.57767512]
[1719796885963,2.85889,3497.9,3495.5,0.57767512]
[1719796885964,6.77,3497.4,3495.6,0.05721075]
[1719796886415,2.85944,3497.2,3495.5,0.86457512]
[1719796886725,9.787,3497.4,3495.5,0.2869]
[1719796886875,2.85993,3496.6,3495.5,0.2869]
[1719796887063,3.017,3497.1,3495.5,0.2869]
[1719796887064,2.86002,3496.5,3495.5,0.2869]
[1719796887404,5.87684,3496.7,3495.5,0.2869]
[1719796887615,5.87684,3496.7,3495.4,3.0]
[1719796887616,2.85994,3496.6,3495.4,3.0]
[1719796887920,2.85968,3496.9,3495.4,3.0]
[1719796888068,9.62932,3497.4,3495.5,0.2869]
[1719796888276,5.85936,3497.3,3495.6,0.05720658]
[1719796888978,8.87636,3497.3,3495.6,0.05720658]
[1719796889161,6.77,3497.4,3495.9,0.2869]
[1719796889367,6.77,3497.4,3496.0,0.05720069]
[1719796889921,2.85886,3497.9,3496.2,3.0]
[1719796890080,2.859,3497.8,3496.3,0.0571971]
[1719796890407,6.418246,3497.9,3495.8,3.2869]
[1719796890408,2.85929,3497.4,3495.8,3.2869]
[1719796890715,2.85937,3497.3,3495.8,3.2869]
[1719796890909,2.85935,3497.3,3495.8,0.2869]
[1719796891112,2.85943,3497.2,3495.8,0.2869]
[1719796891301,7.1213,3497.1,3495.4,3.0]
[1719796891469,2.85976,3496.8,3495.2,0.2869]
[1719796891667,3.017,3496.7,3495.2,0.2869]
[1719796891910,5.87679,3496.8,3495.4,3.0]
[1719796892078,9.6863,3497.1,3495.5,0.34411373]
[1719796892284,2.85964,3497.0,3495.5,0.2869]
[1719796892482,2.85967,3496.9,3495.5,0.2869]
[1719796892776,7.1213,3497.1,3495.5,0.2869]
[1719796892974,7.1213,3497.1,3495.8,3.0]
[1719796893416,7.1213,3497.1,3495.9,0.05720635]
[1719796893626,7.1213,3497.1,3496.0,0.0572042]
[1719796893790,7.218,3497.8,3496.0,0.0572042]
[1719796894123,3.017,3497.7,3496.0,0.0572042]
[1719796894575,5.87602,3497.7,3496.0,0.0572042]
[1719796895196,3.017,3497.6,3495.9,0.2869]
[1719796895409,2.85935,3497.3,3495.9,0.2869]
[1719796896014,2.85918,3497.5,3495.9,0.2869]
[1719796896404,3.017,3497.7,3496.0,0.05720059]
[1719796896727,3.017,3497.7,3496.0,7.04520059]
[1719796896889,5.87604,3497.7,3496.0,7.04520059]
[1719796897093,5.8761,3497.6,3496.0,6.988]
[1719796897287,2.85934,3497.4,3496.0,6.988]
[1719796897516,2.85937,3497.3,3496.0,6.988]
[1719796897879,2.85953,3497.1,3496.0,6.988]
[1719796898079,2.85953,3497.1,3495.9,0.2869]
[1719796898371,2.85953,3497.1,3495.8,3.0]
[1719796898572,2.85935,3497.3,3495.8,3.0]
[1719796898780,2.85935,3497.3,3495.9,0.2869]
[1719796898987,3.017,3497.4,3495.9,0.2869]
[1719796899337,3.017,3497.4,3495.9,0.34410382]
[1719796899693,3.017,3497.4,3495.9,0.2869]
[1719796899895,5.87627,3497.4,3495.9,0.2869]
[1719796900217,2.85949,3497.2,3495.9,0.2869]
[1719796900422,6.463977,3497.3,3495.8,3.0]
[1719796900622,2.85959,3497.0,3495.8,3.0]
[1719796900978,3.017,3497.3,3495.8,3.0]
[1719796901177,5.87637,3497.3,3495.8,3.0]
[1719796901419,2.85961,3497.0,3495.8,3.0]
[1719796901592,0.285961,3497.0,3495.8,3.0]
[1719796901985,2.85968,3496.9,3495.5,7.3562]
[1719796902191,2.85998,3496.6,3495.4,3.0]
[1719796902505,2.86014,3496.4,3495.2,3.0]
[1719796902710,2.86001,3496.5,3495.2,3.0]
[1719796902915,4.194743,3496.5,3495.2,3.0]
[1719796903094,10.33015,3496.8,3495.3,0.34411686]
[1719796903095,7.4704,3496.8,3495.3,0.34411686]
[1719796903280,7.4704,3496.8,3495.3,0.2869]
[1719796903479,2.86001,3496.5,3495.3,0.2869]
[1719796903890,2.85986,3496.7,3495.3,0.2869]
[1719796904097,5.87686,3496.7,3495.3,0.2869]
[1719796904445,2.86001,3496.5,3495.3,0.2869]
[1719796904784,2.86001,3496.5,3495.1,0.2869]
[1719796904785,1.620726,3496.5,3495.1,0.2869]
[1719796905307,2.86031,3496.2,3494.8,1.145504]
[1719796905496,2.86031,3496.2,3494.6,7.4223]
[1719796905497,2.86043,3496.0,3494.6,7.4223]
[1719796905695,2.86043,3496.0,3494.6,7.1354]
[1719796906269,2.86031,3496.2,3494.6,7.1354]
[1719796906270,2.86071,3495.7,3494.6,7.1354]
[1719796906563,2.86074,3495.6,3494.2,0.2869]
[1719796906735,2.86091,3495.4,3494.3,1.14569]
[1719796906937,2.86082,3495.5,3494.2,0.2869]
[1719796907271,2.86082,3495.5,3494.1,6.8649]
[1719796907272,2.86098,3495.3,3494.1,6.8649]
[1719796907759,2.86082,3495.5,3494.1,6.8649]
[1719796908071,2.86107,3495.2,3494.0,3.1469]
[1719796908369,2.86134,3494.9,3493.7,2.47963477]
[1719796908552,7.3211,3495.0,3493.9,1.33376777]
[1719796908752,7.3211,3495.0,3493.4,3.0]
[1719796908753,2.86139,3494.8,3493.4,3.0]
[1719796909074,10.18233,3495.0,3493.8,1.33426528]
[1719796909225,7.3211,3495.0,3493.8,1.33426528]
[1719796909422,7.3211,3495.0,3493.9,1.33426528]
[1719796910079,7.3211,3495.0,3493.8,1.33426528]
[1719796910377,2.86062,3495.8,3493.4,3.0]
[1719796910378,6.7648,3495.5,3494.0,1.33426528]
[1719796910520,5.8609,3495.4,3493.9,1.33426528]
[1719796910724,3.0,3495.4,3493.9,8.58096528]
[1719796910918,5.86094,3495.4,3493.9,8.58096528]
[1719796911119,6.7648,3495.5,3493.9,7.2467]
[1719796911326,6.7648,3495.5,3493.9,8.58096528]
[1719796911651,9.62562,3495.5,3493.9,8.58096528]
[1719796911878,9.62562,3495.5,3493.9,7.2467]
[1719796911879,2.8609,3495.4,3493.9,7.2467]
[1719796912377,2.8609,3495.4,3493.9,8.58134018]
[1719796912726,6.7648,3495.5,3493.9,8.58134018]
[1719796913068,6.7648,3495.5,3494.0,4.19661018]
[1719796913243,6.8604,3496.0,3494.2,4.33464018]
[1719796913459,6.8604,3496.0,3494.3,4.25366914]
[1719796913662,2.86057,3495.9,3494.4,1.33464018]
[1719796913841,2.86057,3495.9,3494.3,1.39186914]
[1719796914246,2.86057,3495.8,3494.3,1.39186914]
[1719796914459,2.86057,3495.8,3494.4,1.33464018]
[1719796914697,2.86077,3495.6,3494.4,1.33464018]
[1719796914905,2.86067,3495.7,3494.3,1.58239346]
[1719796915204,2.86067,3495.7,3494.2,3.0]
[1719796915205,2.86104,3495.3,3494.2,1.33435258]
[1719796915353,2.86082,3495.5,3493.9,10.2467]
[1719796915562,2.86093,3495.4,3493.9,11.58133656]
[1719796915761,4.258131,3495.8,3493.9,10.2467]
[1719796915951,3.0,3495.8,3493.9,11.58133656]
[1719796916148,2.86082,3495.5,3493.9,11.58133656]
[1719796916345,2.86068,3495.7,3494.3,3.0]
[1719796916975,2.86075,3495.6,3494.3,3.0]
[1719796917288,2.86082,3495.5,3494.3,3.0]
[1719796917881,2.86082,3495.5,3493.9,10.2467]
[1719796918401,2.8609,3495.4,3493.9,10.2467]
[1719796919661,2.86121,3495.1,3493.9,7.2467]
[1719796920895,2.86121,3495.1,3493.6,3.0]
[1719796920896,2.86134,3494.9,3493.6,4.33512585]
[1719796921187,2.86131,3494.9,3493.6,3.0]
[1719796921390,7.1739,3495.0,3493.6,3.57591428]
[1719796921595,7.1739,3495.0,3493.7,0.2869]
[1719796921792,10.03518,3495.0,3493.7,0.2869]
[1719796921953,2.86131,3494.9,3493.6,3.57591428]
[1719796922155,2.86044466,3494.9,3493.6,3.0]
[1719796922355,7.1739,3495.0,3493.7,2.06997231]
[1719796922587,12.8244,3495.5,3493.8,2.1272135]
[1719796922895,2.8609,3495.4,3493.9,2.06997231]
[1719796923193,2.8609,3495.4,3494.0,2.06997231]
[1719796923405,2.8609,3495.4,3494.1,1.49405803]
[1719796923726,2.8609,3495.4,3494.0,0.57591428]
[1719796923727,2.86098,3495.3,3494.2,1.49395832]
[1719796924005,2.86098,3495.3,3494.0,0.57591428]
[1719796924205,2.86098,3495.3,3494.1,1.49397069]
[1719796924352,2.86098,3495.3,3494.2,1.49397069]
[1719796924730,9.9635,3495.5,3494.2,7.1797]
[1719796926596,9.9635,3495.5,3494.3,1.49396443]
[1719796926895,9.9635,3495.5,3494.2,7.1797]
[1719796927093,9.9635,3495.5,3494.3,1.49403149]
[1719796927279,9.9635,3495.5,3494.2,7.75900938]
[1719796927478,9.9635,3495.5,3494.3,2.0732553]
[1719796927660,3.0,3495.5,3494.2,7.75900938]
[1719796927851,3.0,3495.8,3494.3,1.49403343]
[1719796928051,3.0,3495.8,3494.2,7.75900938]
[1719796928301,3.0,3495.8,3494.3,1.49401202]
[1719796928513,3.0,3495.8,3494.2,7.1797]
[1719796928514,2.86079,3495.6,3494.2,7.1797]
[1719796928811,3.0,3495.5,3494.2,7.1797]
[1719796929010,5.86083,3495.5,3494.2,7.1797]
[1719796929312,3.0,3495.5,3494.2,7.1797]
[1719796929536,2.86026,3496.2,3494.5,3.0]
[1719796929825,2.86041,3496.0,3494.6,1.49396481]
[1719796929989,7.1622,3496.4,3494.9,3.0]
[1719796930191,2.85896,3497.8,3495.1,0.2869]
[1719796930192,7.4912,3496.9,3495.1,0.2869]
[1719796930399,2.85991,3496.7,3495.1,0.2869]
[1719796931091,0.74912,3496.8,3495.1,0.2869]
[1719796931092,2.85994,3496.6,3495.1,0.2869]
[1719796931315,7.4912,3496.9,3495.2,0.05721516]
[1719796931499,2.85941,3497.3,3495.6,7.2957]
[1719796931708,2.85936,3497.3,3495.6,7.2957]
[1719796931907,2.85962,3497.0,3495.6,7.2957]
[1719796934490,2.85962,3497.0,3495.2,7.1732]
[1719796934491,2.86023,3496.3,3495.2,7.1732]
[1719796934715,2.86034,3496.1,3495.2,7.1732]
[1719796935423,2.86021,3496.3,3495.2,7.1732]
[1719796936011,2.85993,3496.6,3495.2,7.1732]
[1719796936586,3.0,3496.9,3495.3,0.05721893]
[1719796936792,2.8596,3497.0,3495.3,0.05721893]
[1719796937083,3.0,3496.9,3495.3,2.91818893]
[1719796937331,3.0,3496.9,3495.3,0.05721893]
[1719796937482,2.85978,3496.8,3495.2,7.1732]
[1719796937888,2.85944,3497.2,3495.4,5.86084]
[1719796938196,3.8073949,3497.2,3495.5,0.05720953]
[1719796938397,7.2373,3497.4,3495.8,6.7937]
[1719796938603,2.85952,3497.1,3495.8,6.7937]
[1719796939809,2.569,3497.0,3495.4,6.7937]
[1719796940009,2.85995,3496.6,3495.4,6.7937]
[1719796940181,3.285995,3496.5,3495.4,6.7937]
[1719796940385,2.86016,3496.3,3495.4,6.7937]
[1719796940621,2.86032,3496.2,3495.4,6.7937]
[1719796940836,2.86033,3496.1,3495.0,0.2869]
[1719796941388,2.8601,3496.4,3495.0,0.2869]
[1719796941389,2.8602,3496.3,3495.0,0.2869]
[1719796941628,4.1784895,3496.3,3495.0,0.2869]
[1719796942261,1.3182895,3496.3,3495.1,0.05721877]
[1719796942403,0.285995,3496.5,3495.2,6.8961]
[1719796942732,3.0,3496.4,3495.2,6.8961]
[1719796942912,2.85926,3497.4,3495.4,9.90682]
[1719796943115,2.85963,3497.0,3495.4,7.046]
[1719796943537,3.0,3496.9,3495.4,7.046]
[1719796943854,2.8598,3496.8,3495.4,7.046]
[1719796944030,3.44578,3496.8,3495.4,7.046]
[1719796944226,2.8598,3496.8,3495.4,7.046]
[1719796944440,2.85994,3496.6,3495.4,7.046]
[1719796946454,2.85965,3497.0,3495.4,7.046]
[1719796946664,5.85968,3496.9,3495.4,7.046]
[1719796946956,6.731607,3496.9,3495.4,7.046]
[1719796947172,2.85976,3496.8,3495.4,7.046]
[1719796947460,2.8599,3496.7,3495.4,7.046]
[1719796948174,3.871927,3496.9,3495.4,7.046]
[1719796948334,2.85947,3497.2,3496.0,3.0]
[1719796948542,3.0,3497.1,3496.0,3.0]
[1719796948870,2.85944,3497.2,3496.1,6.8668]
[1719796949171,3.0,3497.4,3496.1,6.8668]
[1719796949172,2.8594,3497.3,3496.1,6.8668]
[1719796949469,7.478896,3497.2,3496.1,6.8668]
[1719796949822,2.85953,3497.1,3496.1,6.8668]
[1719796950030,3.0,3497.0,3496.1,6.8668]
[1719796953459,3.0,3497.4,3496.1,6.8668]
[1719796953963,3.542811,3497.5,3496.1,6.8668]
[1719796954264,8.9132,3498.4,3496.5,7.15]
[1719796954465,8.9132,3498.4,3496.6,0.05719068]
[1719796954654,2.85862,3498.2,3496.6,0.05719068]
[1719796954866,1.177158,3498.3,3496.6,0.05719068]
[1719796955728,2.85862,3498.2,3496.6,0.05719068]
[1719796956071,3.0,3498.1,3496.6,0.05719068]
[1719796956934,1.927,3498.0,3496.5,7.15]
[1719796957156,2.6305778,3498.0,3496.5,7.15]
[1719796957451,4.78614,3497.6,3496.5,7.15]
[1719796957771,1.927,3497.6,3496.5,7.15]
[1719796957980,3.0,3497.7,3496.5,7.15]
[1719796958622,3.0,3497.9,3496.5,7.15]
[1719796959263,2.85896,3497.8,3496.5,7.15]
[1719796959461,2.85912,3497.6,3496.5,7.15]
[1719796962092,3.778596,3497.7,3496.5,7.15]
[1719796962235,1.927,3497.3,3496.5,7.15]
[1719796962753,3.0,3497.3,3496.5,7.15]
[1719796962953,3.0,3497.6,3496.5,7.15]
[1719796963268,2.85885,3497.9,3496.5,7.15]
[1719796963581,0.75,3499.2,3495.8,1.927]
[1719796963582,2.8582,3498.7,3496.7,3.0]
[1719796963788,4.7852,3498.7,3496.8,6.9489886]
[1719796964081,2.8583,3498.6,3496.8,6.9489886]
[1719796964225,2.85854,3498.3,3496.8,6.9489886]
[1719796964928,2.85846,3498.4,3496.8,6.9489886]
[1719796965431,3.0,3498.3,3496.8,6.9489886]
[1719796965842,2.85792,3499.1,3497.1,3.0]
[1719796965843,2.8582,3498.8,3497.1,3.0]
[1719796966075,2.8582,3498.8,3497.2,6.94898163]
[1719796966287,2.85821,3498.7,3497.2,6.8918]
[1719796966582,2.8583,3498.6,3497.2,6.8918]
[1719796966783,0.28583,3498.5,3497.2,6.8918]
[1719796967146,2.85878,3498.0,3497.2,6.8918]
[1719796967344,2.85895,3497.8,3497.2,6.8918]
[1719796967580,2.85878,3498.0,3496.6,6.8918]
[1719796967581,2.85884,3498.0,3496.6,6.8918]
[1719796967781,2.85888,3497.9,3496.6,6.8918]
[1719796968188,2.85894,3497.8,3496.6,6.8918]
[1719796968493,2.85903,3497.7,3496.6,6.8918]
[1719796968648,2.85911,3497.6,3496.6,6.8918]
[1719796969044,3.430744,3497.8,3496.6,6.8918]
[1719796970152,2.85903,3497.7,3496.6,6.8918]
[1719796970851,2.8591,3497.6,3496.6,6.8918]
[1719796971071,0.3430864,3497.5,3496.6,6.8918]
[1719796971393,3.571764,3497.8,3496.6,6.8918]
[1719796971394,2.85904,3497.7,3496.6,6.8918]
[1719796974983,7.2525,3497.7,3496.0,6.9669]
[1719796975310,2.567,3497.3,3496.0,6.9669]
[1719796975611,2.85981,3496.8,3496.0,6.9669]
[1719796975788,5.85944,3497.2,3496.0,6.9669]
[1719796976108,3.0,3497.2,3496.0,6.9669]